[Event "Mukachevo IM May 2019"]
[Site "Mukachevo"]
[Date "2019.05.10"]
[Round "3.4"]
[White "Shankovskyi, Andrii"]
[Black "Larkin, Vladyslav"]
[Result "1/2-1/2"]
[ECO "C42"]
[WhiteElo "2374"]
[BlackElo "2366"]
[Annotator "ChessBase"]
[PlyCount "70"]
[EventDate "2019.05.09"]
[EventType "tourn"]
[EventCountry "UKR"]
[SourceTitle "playchess.com"]
[Source "ChessBase"]
[SourceQuality "1"]
[TimeControl "40/5400+30:900+30"]

1. e4 {[%emt 0:01:15]} e5 {[%emt 0:00:05]} 2. Nf3 {[%emt 0:00:02]} Nf6 {[%emt 0:00:06]} 3. Nxe5 {[%emt 0:00:04]} d6 {[%emt 0:00:03]} 4. Nf3 {[%emt 0:00:06]} Nxe4 {[%emt 0:00:05]} 5. Qe2 {[%emt 0:00:03]} Qe7 {[%emt 0:00:07]} 6. d3 {[%emt 0:00:04]} Nf6 {[%emt 0:00:05]} 7. Bg5 {[%emt 0:00:09]} Nbd7 {[%emt 0:00:06]} 8. Nc3 {[%emt 0:00:05]} Qxe2+ {[%emt 0:00:09]} 9. Bxe2 {[%emt 0:00:03]} Be7 {[%emt 0:00:05]} 10. O-O-O {[%emt 0:00:09]} h6 {[%emt 0:00:07]} 11. Bh4 {[%emt 0:00:08]} O-O {[%emt 0:00:13]} 12. Nd4 {[%emt 0:00:17]} Re8 {[%emt 0:00:24]} 13. Rde1 {[%emt 0:00:28]} c6 {[%emt 0:02:25]} 14. Nf5 {[%emt 0:00:23]} Bf8 {[%emt 0:00:25]} 15. Bd1 {[%emt 0:00:12]} g5 {[%emt 0:01:40]} 16. Bg3 {[%emt 0:00:02]} Ne5 {[%emt 0:00:10]} 17. Ne3 {[%emt 0:00:05]} Ng6 {[%emt 0:08:42]} 18. h4 {[%emt 0:00:02]} d5 {[%emt 0:00:21]} 19. hxg5 {[%emt 0:01:12]} hxg5 {[%emt 0:00:06]} 20. Ncxd5 {[%emt 0:03:08]} cxd5 {[%emt 0:00:16]} 21. Nxd5 {[%emt 0:00:02]} Nxd5 {[%emt 0:00:05]} 22. Rxe8 {[%emt 0:00:42]} Nf6 {[%emt 0:00:02]} 23. Rd8 {[%emt 0:03:15]} Kg7 {[%emt 0:01:02]} 24. Bd6 {[%emt 0:15:44]} Bxd6 {[%emt 0:00:24]} 25. Rxd6 {[%emt 0:00:02]} Be6 {[%emt 0:02:14]} 26. c3 {[%emt 0:02:47]} Bd5 {[%emt 0:06:20]} 27. c4 {[%emt 0:05:19]} Bxg2 {[%emt 0:03:19]} 28. Rg1 {[%emt 0:00:15]} Nf4 {[%emt 0:00:05]} 29. b4 {[%emt 0:08:28]} Kg6 {[%emt 0:20:14]} 30. b5 {[%emt 0:02:40]} Kf5 {[%emt 0:05:55]} 31. Re1 {[%emt 0:07:42]} Ne8 {[%emt 0:06:58]} 32. Rd7 {[%emt 0:01:15]} Nf6 {[%emt 0:00:05]} 33. Rd6 {[%emt 0:00:12]} Ne8 {[%emt 0:00:05]} 34. Rd4 {[%emt 0:08:33]} Nf6 {[%emt 0:00:24]} 35. Rd6 {[%emt 0:14:05]} Ne8 {[%emt 0:00:07]} 1/2-1/2

[Event "Mukachevo IM May 2019"]
[Site "Mukachevo"]
[Date "2019.05.11"]
[Round "5.1"]
[White "Itkis, Boris"]
[Black "Tran, David"]
[Result "1-0"]
[ECO "E63"]
[WhiteElo "2327"]
[BlackElo "2070"]
[Annotator "NA"]
[PlyCount "67"]
[EventDate "2019.05.09"]
[EventType "tourn"]
[EventCountry "UKR"]
[SourceTitle "playchess.com"]
[Source "ChessBase"]
[SourceQuality "1"]
[TimeControl "40/5400+30:900+30"]

{[%evp 12,43,50,49,47,16,17,28,32,37,38,40,35,35,59,35,25,30,86,32767,89,96,168,32767,115,129,154,111,135,32767,99,85,149,174]} 1. d4 {[%emt 0:00:00]} Nf6 {[%emt 0:00:00]} 2. Nf3 {[%emt 0:00:00]} g6 {[%emt 0:00:00]} 3. c4 {[%emt 0:00:00]} Bg7 {[%emt 0:00:00]} 4. g3 {[%emt 0:00:00]} O-O {[%emt 0:00:03]} 5. Bg2 {[%emt 0:00:00]} d6 {[%emt 0:00:06]} 6. Nc3 {[%emt 0:00:05]} Nc6 {[%emt 0:00:21]} 7. O-O {[%emt 0:00:32]} a6 {[%emt 0:00:12]} 8. b3 {[%emt 0:01:20]} Rb8 {[%emt 0:00:59]} 9. d5 {[%emt 0:00:16]} Na5 {[%emt 0:02:23] E63: King's Indian: Fianchetto: Panno Variation with 7...a6} 10. Bg5 {[%emt 0:00:09]} c5 {[%emt 0:01:45]} 11. dxc6 $1 {[%emt 0:00:07]} Nxc6 {[%emt 0:00:04]} 12. Rc1 {[%emt 0:00:09]} h6 {[%emt 0:03:11]} 13. Bd2 {[%emt 0:00:09] [#]} e6 $146 {[%emt 0:02:08]} ({Predecessor:} 13... Be6 14. Ne1 Qd7 15. Nd5 h5 16. Bc3 Bh3 17. Nxf6+ Bxf6 18. Bxf6 exf6 19. Bxh3 Qxh3 {1-0 (66) Cordova,E (2595)-Cuenca Jimenez,J (2513) Merida 2018}) 14. Qc2 {[%emt 0:06:25]} d5 {[%emt 0:01:02]} 15. Bf4 {[%emt 0:00:37]} Ra8 {[%emt 0:00:09]} 16. Rfd1 {[%emt 0:01:19]} Nb4 {[%emt 0:02:19]} (16... Qa5 $16 {was necessary.}) 17. Qb1 {[%emt 0:00:19]} Qa5 {[%emt 0:01:32]} 18. Be5 {[%emt 0:14:42]} dxc4 {[%emt 0:02:22]} 19. bxc4 {[%emt 0:00:07]} Nc6 {[%emt 0:00:04]} 20. Bf4 {[%emt 0:03:14]} Rd8 {[%emt 0:12:38]} 21. Rxd8+ {[%emt 0:02:01]} Qxd8 {[%emt 0:00:11]} (21... Nxd8 $142 22. c5 Nd5 23. Nxd5 exd5) 22. Ne5 $18 {[%emt 0:02:45]} Nxe5 {[%emt 0:02:44]} 23. Bxe5 {[%emt 0:00:06]} Ng4 {[%emt 0:01:56]} 24. Bxg7 {[%emt 0:00:13]} Kxg7 {[%emt 0:00:03]} 25. Rd1 {[%emt 0:01:08]} Qc7 {[%emt 0:00:19]} 26. Qb2 {[%emt 0:02:31]} Kh7 {[%emt 0:02:57]} 27. Ne4 {[%emt 0:01:08]} Qe5 {[%emt 0:08:08]} 28. Qb6 {[%emt 0:02:46]} Nf6 {[%emt 0:05:12]} 29. Nxf6+ {[%emt 0:01:45]} Qxf6 {[%emt 0:00:04]} 30. Qc7 {[%emt 0:02:17]} e5 {[%emt 0:02:11]} 31. Rd8 {[%emt 0:00:22]} Qf5 {[%emt 0:00:05]} 32. Be4 {[%emt 0:00:43]} Qe6 {[%emt 0:00:51]} 33. Bd5 {[%emt 0:00:19]} Qf5 {[%emt 0:00:15]} 34. e4 {[%emt 0:00:56]} 1-0

[Event "Mukachevo IM May 2019"]
[Site "Mukachevo"]
[Date "2019.05.11"]
[Round "5.2"]
[White "Shkuran, Danylo"]
[Black "Martynyuk, Elizaveta"]
[Result "1-0"]
[ECO "A06"]
[WhiteElo "2357"]
[BlackElo "2141"]
[Annotator "ChessBase"]
[PlyCount "67"]
[EventDate "2019.05.09"]
[EventType "tourn"]
[EventCountry "UKR"]
[SourceTitle "playchess.com"]
[Source "ChessBase"]
[SourceQuality "1"]
[TimeControl "40/5400+30:900+30"]

1. Nf3 d5 {[%emt 0:09:13]} 2. g3 {[%emt 0:01:29]} Nf6 {[%emt 0:00:07]} 3. Bg2 {[%emt 0:00:05]} c6 {[%emt 0:00:04]} 4. O-O {[%emt 0:00:06]} Bf5 {[%emt 0:00:05]} 5. d3 {[%emt 0:00:05]} h6 {[%emt 0:00:09]} 6. Nbd2 {[%emt 0:00:08]} Bh7 {[%emt 0:00:51]} 7. Qe1 {[%emt 0:00:19]} e6 {[%emt 0:00:14]} 8. e4 {[%emt 0:00:06]} dxe4 {[%emt 0:00:04]} 9. dxe4 {[%emt 0:00:18]} Be7 {[%emt 0:05:47]} 10. Qe2 {[%emt 0:01:30]} O-O {[%emt 0:00:19]} 11. Rd1 {[%emt 0:00:54]} Qc7 {[%emt 0:01:47]} 12. e5 {[%emt 0:05:08]} Nfd7 {[%emt 0:00:25]} 13. Nc4 {[%emt 0:01:20]} Na6 {[%emt 0:01:30]} 14. Nd4 {[%emt 0:28:15]} Rad8 {[%emt 0:14:20]} 15. Bf4 {[%emt 0:09:55]} Nb4 {[%emt 0:02:23]} 16. Qg4 {[%emt 0:39:56]} Kh8 {[%emt 0:02:15]} 17. Nd6 {[%emt 0:00:10]} Nxc2 {[%emt 0:04:21]} 18. Nxf7+ {[%emt 0:01:51]} Rxf7 {[%emt 0:00:06]} 19. Nxe6 {[%emt 0:00:07]} Nxe5 {[%emt 0:08:58]} 20. Nxd8 {[%emt 0:01:41]} Bxd8 {[%emt 0:01:54]} 21. Bxe5 {[%emt 0:00:55]} Qb6 {[%emt 0:01:19]} 22. Qc8 {[%emt 0:03:45]} Rf8 {[%emt 0:01:36]} 23. Qd7 {[%emt 0:00:03]} Qxf2+ {[%emt 0:01:46]} 24. Kh1 {[%emt 0:00:04]} Bf6 {[%emt 0:00:59]} 25. Rf1 {[%emt 0:01:21]} Qe2 {[%emt 0:01:51]} 26. Bxf6 {[%emt 0:01:29]} gxf6 {[%emt 0:00:06]} 27. Qd6 {[%emt 0:01:46]} Kg8 {[%emt 0:02:26]} 28. Rad1 {[%emt 0:00:38]} Ne3 {[%emt 0:01:23]} 29. Qe6+ {[%emt 0:00:15]} Rf7 {[%emt 0:04:37]} 30. Bf3 {[%emt 0:00:15]} Qxf3+ {[%emt 0:04:56]} 31. Rxf3 {[%emt 0:00:04]} Nxd1 {[%emt 0:00:21]} 32. Rxf6 {[%emt 0:00:08]} Be4+ {[%emt 0:00:05]} 33. Kg1 {[%emt 0:00:24]} Bd5 {[%emt 0:00:06]} 34. Qg4+ {[%emt 0:00:13]} 1-0

[Event "Mukachevo IM May 2019"]
[Site "Mukachevo"]
[Date "2019.05.11"]
[Round "5.4"]
[White "Ceres, Dragos"]
[Black "Tiba, Vladyslav"]
[Result "1/2-1/2"]
[ECO "B41"]
[WhiteElo "2317"]
[BlackElo "2370"]
[Annotator "NA"]
[PlyCount "59"]
[EventDate "2019.05.09"]
[EventType "tourn"]
[EventCountry "UKR"]
[SourceTitle "playchess.com"]
[Source "ChessBase"]
[SourceQuality "1"]
[TimeControl "40/5400+30:900+30"]

{[%evp 15,55,17,22,5,46,32,45,29,66,56,72,32767,24,11,31,10,26,14,32767,0,12,32767,0,-10,0,-23,32767,32767,32767,32767,32767,32767,32767,32767,32767,32767,32767,32767,32767,0,32767,0]} 1. e4 {[%emt 0:00:00]} c5 {[%emt 0:00:00]} 2. Nf3 {[%emt 0:00:00]} e6 {[%emt 0:00:00]} 3. d4 {[%emt 0:00:00]} cxd4 {[%emt 0:00:00]} 4. Nxd4 {[%emt 0:00:00]} a6 {[%emt 0:00:03]} 5. c4 {[%emt 0:00:00]} Nf6 {[%emt 0:00:06]} 6. Nc3 {[%emt 0:00:00]} Bb4 {[%emt 0:00:06]} 7. Bd3 {[%emt 0:00:08]} Nc6 {[%emt 0:00:10]} 8. Nc2 {[%emt 0:00:08]} Bxc3+ {[%emt 0:05:25]} 9. bxc3 {[%emt 0:00:03]} O-O {[%emt 0:00:48] B41: Sicilian: Kan Variation: 5 c4} (9... d5 10. exd5 exd5 11. O-O O-O 12. cxd5 Qxd5 13. Ne3 Qc5 14. Nc4 Rd8 15. Be3 Qf8 16. Qc2 b5 17. Nb6 {½-½ (28) Gomez Garrido,C (2527)-Gonzalez Zamora,J (2499) Merida 2016}) 10. Ba3 {[%emt 0:00:09]} d6 {[%emt 0:02:03]} 11. O-O {[%emt 0:00:16]} Qc7 {[%emt 0:00:42]} 12. e5 $1 {[%emt 0:00:11]} dxe5 {[%emt 0:05:05]} 13. Bxf8 {[%emt 0:00:41]} Kxf8 {[%emt 0:00:04]} 14. Ne3 $146 {[%emt 0:05:30]} ({Predecessor:} 14. Qc1 e4 15. Be2 Ne5 16. Qa3+ Kg8 17. Rfd1 {1-0 (52) Dominguez Pons,E (2313)-Beltran Rueda,S (2370) Barcelona 2011}) 14... Bd7 {[%emt 0:02:55]} 15. Qb3 {[%emt 0:02:18]} e4 {[%emt 0:07:23]} 16. Be2 {[%emt 0:04:49]} Ne5 {[%emt 0:00:25]} 17. Qb4+ {[%emt 0:02:14]} Kg8 {[%emt 0:00:19]} 18. c5 {[%emt 0:07:45]} Bc6 {[%emt 0:02:12]} 19. Rfd1 {[%emt 0:00:44]} Ned7 {[%emt 0:05:19]} 20. Nc4 {[%emt 0:07:44]} Nd5 {[%emt 0:04:38]} 21. Qa3 {[%emt 0:00:26]} Qf4 {[%emt 0:02:03]} 22. Bf1 {[%emt 0:09:17]} N7f6 {[%emt 0:07:49]} 23. Qc1 {[%emt 0:01:12]} Qc7 {[%emt 0:06:12]} 24. Nd6 {[%emt 0:08:34]} Qa5 {[%emt 0:04:23]} 25. c4 {[%emt 0:01:35]} Nc3 {[%emt 0:01:41]} 26. Qd2 {[%emt 0:01:36]} Qa3 {[%emt 0:00:19] [#]} 27. Qe3 {[%emt 0:08:28]} ({White should play} 27. Re1 $1 $16) 27... Qa5 {[%emt 0:02:21]} 28. Qd2 $11 {[%emt 0:01:20]} Qa3 {[%emt 0:00:43]} 29. Qe3 {[%emt 0:00:09]} Qa5 {[%emt 0:00:09]} 30. Qd2 {[%emt 0:00:07]} 1/2-1/2

[Event "Mukachevo IM May 2019"]
[Site "Mukachevo"]
[Date "2019.05.11"]
[Round "5.5"]
[White "Oros, Robert"]
[Black "Larkin, Vladyslav"]
[Result "0-1"]
[ECO "C24"]
[WhiteElo "2316"]
[BlackElo "2366"]
[Annotator "NA"]
[PlyCount "64"]
[EventDate "2019.05.09"]
[EventType "tourn"]
[EventCountry "UKR"]
[SourceTitle "playchess.com"]
[Source "ChessBase"]
[SourceQuality "1"]
[TimeControl "40/5400+30:900+30"]

1. e4 {[%emt 0:00:00]} e5 {[%emt 0:02:02]} 2. Bc4 {[%emt 0:01:08]} Nf6 {[%emt 0:01:14]} 3. d3 {[%emt 0:00:54]} Bc5 {[%emt 0:01:09]} 4. Nc3 {[%emt 0:00:24]} c6 {[%emt 0:00:56]} 5. Qe2 {[%emt 0:03:42]} (5. Nf3 d6 6. h3 O-O 7. O-O Re8 8. Ne2 Nbd7 9. Ng3 Nf8 10. c3 Bb6 11. Bb3 Be6 12. a4 d5 13. Bg5 h6 14. Bxf6 Qxf6 {½-½ (94) Rapport,R (2731)-Kramnik,V (2777) Wijk aan Zee 2019}) 5... h6 {[%emt 0:02:09]} (5... b5 $5 6. Bb3 $8 a5 $11) 6. Nf3 {[%emt 0:00:33] C27: Vienna Game: 2...Nf6 3 Bc4 Nxe4} d6 {[%emt 0:01:27]} 7. Bb3 {[%emt 0:02:04]} Nbd7 $146 {[%emt 0:06:15]} ({Predecessor:} 7... Qe7 8. Be3 Bxe3 9. Qxe3 Be6 10. O-O Nbd7 11. d4 O-O 12. Rad1 Bxb3 13. axb3 {1-0 (31) Ranaivoharisoa,A (2159)-Randriambololona,H Antananarivo 2012}) 8. Be3 {[%emt 0:04:13]} Bxe3 {[%emt 0:09:53]} 9. Qxe3 {[%emt 0:01:01]} Nc5 {[%emt 0:00:16]} 10. d4 {[%emt 0:00:22]} exd4 {[%emt 0:01:11]} 11. Qxd4 {[%emt 0:00:48]} O-O {[%emt 0:00:25]} 12. O-O-O {[%emt 0:01:24]} Nxb3+ {[%emt 0:01:49]} 13. axb3 {[%emt 0:09:28]} Qb6 {[%emt 0:03:23]} 14. Qd2 {[%emt 0:13:14]} Re8 {[%emt 0:04:22]} 15. Rhe1 {[%emt 0:01:22]} Bg4 {[%emt 0:01:38]} 16. h3 {[%emt 0:00:50]} Bxf3 {[%emt 0:02:39]} 17. gxf3 {[%emt 0:00:02]} Re6 {[%emt 0:00:45]} 18. f4 {[%emt 0:01:27]} Rae8 {[%emt 0:00:41]} 19. f3 {[%emt 0:00:09]} d5 $11 {[%emt 0:03:05]} 20. e5 {[%emt 0:00:44]} Nh5 {[%emt 0:00:19]} 21. Rg1 {[%emt 0:05:47]} f6 {[%emt 0:01:07]} 22. Na4 {[%emt 0:03:17]} Qb5 {[%emt 0:07:42]} 23. Qg2 {[%emt 0:08:21]} Qb4 {[%emt 0:00:57]} ({Not} 23... fxe5 24. Qg4 $16) 24. Kb1 {[%emt 0:02:55]} b5 {[%emt 0:09:53]} 25. Qg6 {[%emt 0:04:45]} bxa4 {[%emt 0:00:35]} 26. Qxh5 {[%emt 0:00:15]} Qxf4 {[%emt 0:02:10]} 27. exf6 {[%emt 0:03:23]} Qxf6 {[%emt 0:00:04]} 28. bxa4 {[%emt 0:01:14]} Rb8 {[%emt 0:00:04]} 29. b3 {[%emt 0:00:46]} Rxb3+ {[%emt 0:01:03]} 30. cxb3 {[%emt 0:00:37]} Re2 {[%emt 0:00:02]} 31. Rxg7+ {[%emt 0:01:20]} Qxg7 {[%emt 0:00:05]} 32. Qg4 {[%emt 0:00:41]} Rb2+ {[%emt 0:00:21]} 0-1

[Event "Mukachevo IM May 2019"]
[Site "Mukachevo"]
[Date "2019.05.12"]
[Round "6.1"]
[White "Tran, David"]
[Black "Larkin, Vladyslav"]
[Result "0-1"]
[ECO "B25"]
[WhiteElo "2070"]
[BlackElo "2366"]
[Annotator "NA"]
[PlyCount "112"]
[EventDate "2019.05.09"]
[EventType "tourn"]
[EventCountry "UKR"]
[SourceTitle "playchess.com"]
[Source "ChessBase"]
[SourceQuality "1"]
[TimeControl "40/5400+30:900+30"]

1. e4 {[%emt 0:00:00]} c5 {[%emt 0:00:00]} 2. Nc3 {[%emt 0:00:00]} Nc6 {[%emt 0:00:00]} 3. g3 {[%emt 0:00:00]} g6 {[%emt 0:00:00]} 4. Bg2 {[%emt 0:00:00]} Bg7 {[%emt 0:00:00]} 5. d3 {[%emt 0:00:00]} d6 {[%emt 0:00:07]} 6. f4 {[%emt 0:00:06]} e6 {[%emt 0:00:20]} 7. Nf3 {[%emt 0:00:09]} Nge7 {[%emt 0:00:20]} 8. O-O {[%emt 0:00:31]} O-O {[%emt 0:00:20]} 9. Be3 $11 {[%emt 0:00:05]} Rb8 {[%emt 0:08:23]} 10. Bf2 {[%emt 0:02:21]} b5 {[%emt 0:00:52]} 11. d4 {[%emt 0:00:04]} b4 {[%emt 0:01:08]} 12. Ne2 {[%emt 0:00:28]} Ba6 {[%emt 0:00:17]} 13. dxc5 {[%emt 0:01:10]} dxc5 {[%emt 0:00:12]} 14. Qxd8 {[%emt 0:01:49]} Rfxd8 {[%emt 0:00:05]} 15. Rae1 {[%emt 0:00:28]} Bxb2 {[%emt 0:00:45]} 16. Bxc5 {[%emt 0:00:06]} Bc3 {[%emt 0:00:25]} 17. Nxc3 {[%emt 0:01:28]} Bxf1 {[%emt 0:00:09]} 18. Bxf1 {[%emt 0:00:16]} bxc3 {[%emt 0:00:05]} 19. Bc4 {[%emt 0:00:04]} Rd7 {[%emt 0:01:33]} 20. Re3 {[%emt 0:02:02]} Na5 {[%emt 0:03:38]} 21. Bb3 {[%emt 0:00:26]} Nxb3 {[%emt 0:00:35]} 22. axb3 {[%emt 0:00:05]} Rc8 {[%emt 0:02:11]} 23. Rxc3 {[%emt 0:00:40]} Rdc7 {[%emt 0:04:35]} 24. b4 {[%emt 0:00:09]} a5 {[%emt 0:01:12]} 25. Rb3 {[%emt 0:02:01]} axb4 {[%emt 0:03:16]} 26. Bxb4 {[%emt 0:00:07]} Nc6 {[%emt 0:00:27]} 27. Bd6 {[%emt 0:01:02]} Rd7 {[%emt 0:00:15]} 28. e5 {[%emt 0:00:08]} Na5 {[%emt 0:00:12]} 29. Rb8 {[%emt 0:05:11]} Rxb8 {[%emt 0:00:22]} 30. Bxb8 {[%emt 0:00:05]} Nc4 {[%emt 0:00:03]} 31. Kf2 {[%emt 0:04:01]} h6 {[%emt 0:03:20]} 32. Ke2 {[%emt 0:01:31]} Kf8 {[%emt 0:00:46]} 33. c3 {[%emt 0:00:27]} Rb7 {[%emt 0:02:48]} 34. Bd6+ {[%emt 0:00:09]} Nxd6 {[%emt 0:00:06]} 35. exd6 {[%emt 0:00:02]} Rd7 {[%emt 0:00:02]} 36. c4 {[%emt 0:03:57]} Rxd6 {[%emt 0:00:05]} 37. Ne5 {[%emt 0:00:03]} g5 {[%emt 0:07:26]} 38. c5 {[%emt 0:00:57]} Rd8 {[%emt 0:00:10]} 39. Ke3 {[%emt 0:01:32]} f6 {[%emt 0:01:21]} 40. Nc4 {[%emt 0:00:00]} gxf4+ {[%emt 0:00:00]} 41. gxf4 {[%emt 0:00:30]} Ke7 {[%emt 0:01:07]} 42. Nb6 {[%emt 0:01:06]} Rd1 {[%emt 0:02:02]} 43. Nc8+ {[%emt 0:04:05]} Kd7 {[%emt 0:01:38]} 44. Nd6 {[%emt 0:00:05]} Rxd6 {[%emt 0:05:44]} 45. cxd6 {[%emt 0:00:41]} Kxd6 {[%emt 0:00:04]} 46. Kd4 {[%emt 0:00:25]} h5 {[%emt 0:00:05]} 47. Kc4 {[%emt 0:04:54]} e5 {[%emt 0:02:26]} 48. Kd3 {[%emt 0:00:21]} f5 {[%emt 0:00:08]} 49. fxe5+ {[%emt 0:00:04]} Kxe5 {[%emt 0:00:06]} 50. Ke3 {[%emt 0:00:04]} f4+ {[%emt 0:00:03]} 51. Kf3 {[%emt 0:00:29]} Kf5 {[%emt 0:00:45]} 52. h3 {[%emt 0:04:36]} Ke5 {[%emt 0:00:14]} 53. Kf2 {[%emt 0:00:43]} Ke4 {[%emt 0:00:06]} 54. Ke2 {[%emt 0:00:08]} f3+ {[%emt 0:00:12]} 55. Ke1 {[%emt 0:00:13]} Kf4 {[%emt 0:00:19]} 56. Kf2 {[%emt 0:01:18]} h4 {[%emt 0:00:07]} 0-1

[Event "Mukachevo IM May 2019"]
[Site "Mukachevo"]
[Date "2019.05.12"]
[Round "6.2"]
[White "Tiba, Vladyslav"]
[Black "Oros, Robert"]
[Result "1/2-1/2"]
[ECO "B30"]
[WhiteElo "2370"]
[BlackElo "2316"]
[Annotator "ChessBase"]
[PlyCount "115"]
[EventDate "2019.05.09"]
[EventType "tourn"]
[EventCountry "UKR"]
[SourceTitle "playchess.com"]
[Source "ChessBase"]
[SourceQuality "1"]
[TimeControl "40/5400+30:900+30"]

1. e4 {[%emt 0:00:00]} c5 {[%emt 0:00:00]} 2. Nf3 {[%emt 0:00:00]} Nc6 {[%emt 0:00:00]} 3. Bb5 {[%emt 0:00:00]} e6 {[%emt 0:00:18]} 4. O-O {[%emt 0:00:00]} Nge7 {[%emt 0:00:06]} 5. d4 {[%emt 0:00:10]} cxd4 {[%emt 0:01:39]} 6. Nxd4 {[%emt 0:00:05]} Qb6 {[%emt 0:02:21]} 7. Nxc6 {[%emt 0:00:06]} dxc6 {[%emt 0:03:00]} 8. Bc4 {[%emt 0:03:13]} Ng6 {[%emt 0:00:29]} 9. Kh1 {[%emt 0:00:18]} e5 {[%emt 0:05:18]} 10. Qf3 {[%emt 0:00:20]} Be6 {[%emt 0:06:47]} 11. Bxe6 {[%emt 0:01:40]} fxe6 {[%emt 0:00:08]} 12. Qg4 {[%emt 0:07:42]} O-O-O {[%emt 0:00:16]} 13. Qxe6+ {[%emt 0:00:48]} Kb8 {[%emt 0:00:23]} 14. Bg5 {[%emt 0:29:52]} Rc8 {[%emt 0:06:50]} 15. Nd2 {[%emt 0:03:57]} Bc5 {[%emt 0:05:20]} 16. Nc4 {[%emt 0:03:15]} Qc7 {[%emt 0:01:45]} 17. Rad1 {[%emt 0:02:13]} Rce8 {[%emt 0:01:14]} 18. Qh3 {[%emt 0:00:24]} b5 {[%emt 0:05:04]} 19. Rd7 {[%emt 0:12:12]} Qc8 {[%emt 0:00:21]} 20. Na5 {[%emt 0:00:08]} Bb6 {[%emt 0:01:30]} 21. b4 {[%emt 0:08:58]} Nf8 {[%emt 0:03:26]} 22. Rf7 {[%emt 0:00:48]} Ne6 {[%emt 0:01:58]} 23. Be3 {[%emt 0:00:30]} Rhf8 {[%emt 0:01:12]} 24. Rb7+ {[%emt 0:01:25]} Qxb7 {[%emt 0:00:37]} 25. Nxb7 {[%emt 0:00:05]} Kxb7 {[%emt 0:00:18]} 26. Bxb6 {[%emt 0:00:29]} Kxb6 {[%emt 0:02:30]} 27. Qxh7 {[%emt 0:00:27]} Nd4 {[%emt 0:01:15]} 28. c3 {[%emt 0:01:21]} Ne2 {[%emt 0:00:24]} 29. Qxg7 {[%emt 0:05:30]} Nxc3 {[%emt 0:01:46]} 30. Qg3 {[%emt 0:00:12]} Na4 {[%emt 0:00:44]} 31. Rc1 {[%emt 0:01:33]} Nb2 {[%emt 0:00:24]} 32. Qe3+ {[%emt 0:04:27]} Kb7 {[%emt 0:01:04]} 33. g3 {[%emt 0:01:23]} Rd8 {[%emt 0:00:39]} 34. h4 {[%emt 0:02:07]} Nc4 {[%emt 0:01:30]} 35. Qc5 {[%emt 0:01:19]} Rf7 {[%emt 0:01:21]} 36. Rxc4 {[%emt 0:07:50]} bxc4 {[%emt 0:00:20]} 37. Kg2 {[%emt 0:01:18]} Rd4 {[%emt 0:02:13]} 38. b5 {[%emt 0:01:00]} Rc7 {[%emt 0:01:08]} 39. Qxe5 {[%emt 0:00:22]} Rd3 {[%emt 0:00:49]} 40. h5 {[%emt 0:00:00]} cxb5 {[%emt 0:00:00]} 41. Qxb5+ {[%emt 0:01:02]} Kc8 {[%emt 0:01:53]} 42. h6 {[%emt 0:03:03]} Rdd7 {[%emt 0:01:08]} 43. e5 {[%emt 0:08:37]} c3 {[%emt 0:00:57]} 44. e6 {[%emt 0:00:08]} Re7 {[%emt 0:07:30]} 45. Qf5 {[%emt 0:01:30]} Kb8 {[%emt 0:01:48]} 46. Qc2 {[%emt 0:01:39]} Rc8 {[%emt 0:06:24]} 47. g4 {[%emt 0:03:01]} Rxe6 {[%emt 0:01:11]} 48. g5 {[%emt 0:00:07]} Re5 {[%emt 0:00:40]} 49. f4 {[%emt 0:01:26]} Re3 {[%emt 0:06:44]} 50. h7 {[%emt 0:00:47]} Rd8 {[%emt 0:01:59]} 51. g6 {[%emt 0:00:55]} Kc7 {[%emt 0:01:17]} 52. g7 {[%emt 0:00:39]} Rd2+ {[%emt 0:00:19]} 53. Qxd2 {[%emt 0:00:37]} cxd2 {[%emt 0:00:08]} 54. g8=Q {[%emt 0:00:11]} d1=Q {[%emt 0:00:51]} 55. Qc4+ {[%emt 0:00:09]} Kb6 {[%emt 0:01:06]} 56. Qb4+ {[%emt 0:00:17]} Kc6 {[%emt 0:01:35]} 57. Qc4+ {[%emt 0:00:06]} Kb6 {[%emt 0:00:52]} 58. Qb4+ {[%emt 0:00:10]} 1/2-1/2

[Event "Mukachevo IM May 2019"]
[Site "Mukachevo"]
[Date "2019.05.12"]
[Round "6.3"]
[White "Vachylia, Andrii"]
[Black "Ceres, Dragos"]
[Result "0-1"]
[ECO "E04"]
[WhiteElo "2285"]
[BlackElo "2317"]
[Annotator "ChessBase"]
[PlyCount "84"]
[EventDate "2019.05.09"]
[EventType "tourn"]
[EventCountry "UKR"]
[SourceTitle "playchess.com"]
[Source "ChessBase"]
[SourceQuality "1"]
[TimeControl "40/5400+30:900+30"]

1. d4 {[%emt 0:00:27]} Nf6 {[%emt 0:00:00]} 2. c4 {[%emt 0:00:05]} e6 {[%emt 0:00:00]} 3. Nf3 {[%emt 0:00:04]} d5 {[%emt 0:00:00]} 4. g3 {[%emt 0:00:43]} dxc4 {[%emt 0:00:00]} 5. Bg2 {[%emt 0:00:10]} Nc6 {[%emt 0:00:10]} 6. O-O {[%emt 0:01:35]} Rb8 {[%emt 0:00:16]} 7. Nc3 {[%emt 0:11:54]} b5 {[%emt 0:09:02]} 8. a4 {[%emt 0:22:03]} b4 {[%emt 0:01:03]} 9. Nb5 {[%emt 0:02:37]} a6 {[%emt 0:10:22]} 10. Ne5 {[%emt 0:00:14]} Nxe5 {[%emt 0:00:39]} 11. dxe5 {[%emt 0:00:06]} Nd5 {[%emt 0:02:28]} 12. Nd4 {[%emt 0:02:00]} Bb7 {[%emt 0:00:30]} 13. Qc2 {[%emt 0:01:56]} c3 {[%emt 0:08:19]} 14. Rd1 {[%emt 0:00:45]} c5 {[%emt 0:02:23]} 15. Nf3 {[%emt 0:00:16]} Qc7 {[%emt 0:07:42]} 16. e4 {[%emt 0:02:28]} cxb2 {[%emt 0:00:44]} 17. Bxb2 {[%emt 0:00:05]} Nb6 {[%emt 0:00:10]} 18. a5 {[%emt 0:01:09]} Nd7 {[%emt 0:00:07]} 19. Nd2 {[%emt 0:00:13]} Be7 {[%emt 0:02:17]} 20. Nc4 {[%emt 0:00:25]} O-O {[%emt 0:00:13]} 21. f4 {[%emt 0:01:49]} Rfe8 {[%emt 0:13:10]} 22. Qe2 {[%emt 0:12:57]} Bc6 {[%emt 0:05:40]} 23. Qg4 {[%emt 0:06:25]} Bb5 {[%emt 0:00:16]} 24. Nd6 {[%emt 0:00:26]} c4 {[%emt 0:00:10]} 25. Bd4 {[%emt 0:02:59]} Bf8 {[%emt 0:08:44]} 26. f5 {[%emt 0:21:49]} Nc5 {[%emt 0:01:21]} 27. Bf1 {[%emt 0:04:31]} Nb3 {[%emt 0:04:56]} 28. Nxe8 {[%emt 0:00:29]} Rxe8 {[%emt 0:00:08]} 29. Bb6 {[%emt 0:00:05]} Qxe5 {[%emt 0:00:50]} 30. Ra2 {[%emt 0:00:20]} c3 {[%emt 0:06:02]} 31. Bxb5 {[%emt 0:01:06]} Qxb5 {[%emt 0:00:15]} 32. fxe6 {[%emt 0:00:06]} Rxe6 {[%emt 0:00:11]} 33. Rf2 {[%emt 0:00:11]} Nxa5 {[%emt 0:02:41]} 34. Bd4 {[%emt 0:00:44]} Nc6 {[%emt 0:02:24]} 35. Be3 {[%emt 0:01:55]} b3 {[%emt 0:02:23]} 36. Rdf1 {[%emt 0:00:22]} Ne5 {[%emt 0:01:10]} 37. Qd1 {[%emt 0:00:32]} c2 {[%emt 0:00:56]} 38. Qc1 {[%emt 0:01:09]} f6 {[%emt 0:00:57]} 39. Rf5 {[%emt 0:00:41]} Qd3 {[%emt 0:00:41]} 40. Ba7 {[%emt 0:00:00]} Nc4 {[%emt 0:00:00]} 41. R5f2 {[%emt 0:00:46]} Qxe4 {[%emt 0:02:52]} 42. Rf4 {[%emt 0:01:05]} b2 {[%emt 0:00:36]} 0-1